fUSD/lending_fUSD_20251211
["ID","MTS","AMOUNT","RATE_DAILY","PERIOD"]
[398201118,1765437034899,-500.0,0.00020778,2]
[398201119,1765437034908,-500.0,0.00020778,2]
[398201120,1765437034917,-500.0,0.00020778,2]
[398201121,1765437034926,-500.0,0.00020778,2]
[398201122,1765437034935,-500.0,0.00020778,2]
[398201123,1765437034944,-1000.0,0.00020778,2]
[398201124,1765437034953,-500.0,0.00020778,2]
[398201125,1765437034963,-1000.0,0.00020778,2]
[398201126,1765437034972,-1599.0,0.00020778,2]
[398201127,1765437034982,-500.0,0.00020778,2]
[398201128,1765437034992,-1000.0,0.00020778,2]
[398201129,1765437035001,-622.24294831,0.00020778,2]
[398201130,1765437035010,-300.0,0.00020778,2]
[398201131,1765437035020,-1463.0,0.00020778,2]
[398201132,1765437035029,-322.6107,0.00020778,2]
[398201133,1765437035039,-1599.0,0.00020833,2]
[398201134,1765437035048,-1599.0,0.00020888,2]
[398201135,1765437035057,-1599.0,0.00020943,2]
[398201136,1765437035066,-200.0,0.00020975,2]
[398201137,1765437035075,-1009.41,0.00020992,2]
[398201138,1765437035084,-1599.0,0.00020998,2]
[398201139,1765437035094,-1599.0,0.00021053,2]
[398201140,1765437035104,-1599.0,0.00021108,2]
[398201141,1765437035113,-334.5472959,0.00021326,2]
[398201142,1765437035123,-21190.53116316,0.00021404,2]
[398201143,1765437035133,-11739.27277376,0.00021412,2]
[398201144,1765437035142,-480.8162296,0.000215,2]
[398201145,1765437035152,-823.0,0.00021641,2]
[398201146,1765437035161,-346.92554585,0.00021874,2]
[398201147,1765437035173,-3292.0,0.00021966,2]
[398201148,1765437035182,-287.61899177,0.00022147,2]
[398201149,1765437035192,-311.1,0.00022147,2]
[398201150,1765437035201,-454.57805979,0.00022422,2]
[398201151,1765437035212,-250.0,0.00022703,2]
[398201152,1765437035221,-168.0,0.00023274,2]
[398201153,1765437035231,-168.0,0.00023385,2]
[398201154,1765437035418,-168.0,0.00023387,2]
[398201155,1765437035428,-168.0,0.00023424,2]
[398201156,1765437035437,-298.26089446,0.00023516,2]
[398201157,1765437035446,-322.6107,0.00023516,2]
[398201158,1765437035456,-168.0,0.00023562,2]
[398201159,1765437035465,-1009.41,0.00023616,2]
[398201160,1765437035474,-168.0,0.00023623,2]
[398201161,1765437035484,-1151.0,0.00023646,2]
[398201162,1765437035494,-21190.53116316,0.00023811,2]
[398201163,1765437035503,-11739.27277376,0.00023819,2]
[398201164,1765437035512,-168.0,0.00023883,2]
[398201165,1765437035522,-4609.0,0.00024122,2]
[398201166,1765437035531,-168.0,0.00024201,2]
[398201167,1765437035540,-168.0,0.00024369,2]
[398201168,1765437035549,-2033.0,0.00024416,2]
[398201169,1765437035559,-168.0,0.00024575,2]
[398201170,1765437035568,-168.0,0.00024631,2]
[398201171,1765437035576,-735.42,0.00024658,30]
[398201172,1765437035586,-168.0,0.00024719,2]
[398201173,1765437035595,-500.0,0.00024773,2]
[398201174,1765437035604,-309.29654756,0.00024885,2]
[398201175,1765437035614,-334.5472959,0.00024885,2]
[398201176,1765437035624,-610.65452117,0.0002489,2]
[398201177,1765437035633,-534.08906756,0.00024899,2]
[398201178,1765437035643,-3970.72,0.00024899,2]
[398201179,1765437035652,-2000.0,0.000249,30]
[398201180,1765437035662,-44846.88292656,0.000249,2]
[398201181,1765437035674,-820.7253007,0.000249,2]
[398201182,1765437035689,-853.06165973,0.000249,2]
[398201183,1765437035700,-889.22490028,0.000249,2]
[398201184,1765437035711,-8358.6192992,0.000249,2]
[398201185,1765437035811,-2542.35722492,0.000249,2]
[398201186,1765437035823,-529.74179822,0.000249,2]
[398201187,1765437035834,-620.25820178,0.000249,2]
[398201188,1765437038403,-304.06693998,0.00016552,2]
[398201189,1765437038414,-304.06693998,0.0001657,2]
[398201190,1765437038423,-500.0,0.00016599,2]
[398201191,1765437038433,-500.0,0.00016599,2]
[398201192,1765437038442,-2033.0,0.00024405,2]
[398201193,1765437038452,-14535.64812071,0.000249,2]
[398201194,1765437038461,-168.0,0.00024911,2]
[398201195,1765437038471,-168.0,0.00025207,2]
[398201196,1765437038482,-168.0,0.00025248,2]
[398201197,1765437038492,-168.0,0.00025359,2]
[398201198,1765437038502,-168.0,0.00025549,2]
[398201199,1765437038511,-168.0,0.0002557,2]
[398201200,1765437038521,-500.0,0.00025699,2]
[398201201,1765437038530,-2740.61183082,0.00025776,2]
[398201202,1765437038540,-150.99,0.00025786,2]
[398201203,1765437038549,-8085.58,0.00025786,2]
[398201204,1765437038559,-9999.99,0.00025786,2]
[398201205,1765437038568,-597.4,0.00025865,2]
[398201206,1765437038577,-21190.53116316,0.00026219,2]
[398201207,1765437038587,-11739.27277376,0.00026225,2]
[398201208,1765437038596,-1009.41,0.0002624,120]
[398201209,1765437038605,-320.74051982,0.00026254,2]
[398201210,1765437038614,-242.8420041,0.00026254,2]
[398201211,1765437038623,-2740.61183082,0.00026275,2]
[398201212,1765437038631,-563.0,0.00026285,2]
[398201213,1765437038640,-4764.0,0.00026285,2]
[398201214,1765437038649,-6518.0,0.00026285,2]
[398201215,1765437038658,-328.929,0.00026285,2]
[398201216,1765437038667,-4317.0,0.00026489,2]
[398201217,1765437038677,-275.18,0.00026676,2]
[398201218,1765437038686,-166.66,0.00027535,30]
[398201219,1765437038695,-332.60791905,0.00027623,2]
[398201220,1765437038704,-3006.90863046,0.00028,3]
[398201221,1765437038713,-166.66,0.00028115,30]
[398201222,1765437038722,-21190.53116316,0.00028626,2]
[398201223,1765437038732,-11739.27277376,0.00028631,2]
[398201224,1765437038741,-2740.61183082,0.0002869,2]
[398201225,1765437038751,-166.66,0.00028695,30]
[398201226,1765437038761,-612.362,0.000287,2]
[398201227,1765437038770,-684.0,0.000287,2]
[398201228,1765437038779,-1009.41,0.00028864,120]
[398201229,1765437038788,-344.91441206,0.00028992,2]
[398201230,1765437038798,-166.66,0.00029274,30]
[398201231,1765437038807,-4764.0,0.00029285,2]
[398201232,1765437038816,-6516.0,0.00029285,2]
[398201233,1765437038825,-253.0,0.00029285,2]
[398201234,1765437038834,-735.42,0.00029492,30]
[398201235,1765437038844,-166.66,0.00029854,30]
[398201236,1765437038853,-1067.54,0.000302,30]
[398201237,1765437038863,-357.6762453,0.00030361,2]
[398201238,1765437038872,-166.66,0.00030434,30]
[398201239,1765437038882,-21190.53116316,0.00031034,2]
[398201241,1765437038892,-170.54195211,0.00031037,2]
[398201243,1765437038902,-11739.27277376,0.00031037,2]
[398201244,1765437038912,-500.0,0.00031288,2]
[398201246,1765437038922,-1009.41,0.00031488,120]
[398201247,1765437038931,-611.0,0.000317,2]
[398201248,1765437038941,-684.0,0.000317,2]
[398201249,1765437038951,-370.91026638,0.0003173,2]
[398201253,1765437038961,-676.047,0.00032285,2]
[398201254,1765437039193,-253.0,0.00032285,2]
[398201255,1765437039202,-254.54,0.00032567,2]
[398201256,1765437039212,-206.21,0.00032635,2]
[398201257,1765437039222,-203.27582614,0.00032643,2]
[398201258,1765437039232,-2740.61183082,0.00032753,2]
[398201259,1765437039241,-6581.0,0.00032763,5]
[398201260,1765437039254,-384.63394623,0.00033099,2]
[398201261,1765437039264,-275.18,0.00033165,2]
[398201262,1765437039274,-500.0,0.00033315,2]
[398201263,1765437039283,-21190.53116316,0.00033441,2]
[398201264,1765437039293,-11739.27277376,0.00033444,2]
[398201265,1765437039302,-1500.0,0.000338,2]
[398201266,1765437039311,-735.42,0.00034327,30]
[398201267,1765437039322,-398.86540225,0.00034468,2]
[398201268,1765437039331,-150.0,0.00034496,7]
[398201269,1765437039340,-150.0,0.00034496,7]
[398201270,1765437039350,-150.0,0.00034496,7]
[398201271,1765437039360,-151.1752583,0.00034496,7]
[398201272,1765437039369,-150.0,0.00034496,7]
[398201273,1765437039379,-150.0,0.00034496,7]
[398201274,1765437039388,-150.0,0.00034496,7]
[398201275,1765437039398,-1000.0,0.000351,7]
[398201276,1765437039407,-150.0,0.00035262,7]
[398201277,1765437039416,-253.0,0.00035285,2]
[398201278,1765437039425,-150.0,0.00035454,7]
[398201279,1765437039435,-150.0,0.00035454,7]
[398201280,1765437039444,-296.65,0.000355,30]
[398201281,1765437039453,-150.0,0.00035774,7]
[398201282,1765437039462,-2740.61183082,0.0003584,2]
[398201283,1765437039472,-21190.53116316,0.00035849,2]
[398201284,1765437039481,-11739.27277376,0.0003585,2]
[398201285,1765437039490,-2740.61183082,0.0003588,2]
[398201286,1765437039500,-150.0,0.0003589,60]
[398201287,1765437039509,-150.0,0.0003589,60]
[398201288,1765437039519,-150.0,0.0003589,60]
[398201289,1765437039528,-150.0,0.0003589,60]
[398201290,1765437039537,-150.0,0.0003589,60]
[398201291,1765437039546,-268.22068745,0.0003589,60]
[398201292,1765437039555,-150.0,0.0003589,60]
[398201293,1765437039565,-150.0,0.0003589,60]
[398201294,1765437039574,-150.0,0.0003589,60]
[398201295,1765437039583,-150.0,0.0003589,60]
[398201296,1765437039592,-150.0,0.00036027,60]
[398201297,1765437039602,-150.08427247,0.00036027,60]
[398201298,1765437039611,-150.0,0.00036027,60]
[398201299,1765437039620,-150.0,0.00036027,60]
[398201300,1765437039630,-150.0,0.00036027,60]
[398201301,1765437039639,-214.51278261,0.00036027,60]
[398201302,1765437039649,-157.07600834,0.00036027,60]
[398201303,1765437039658,-150.0,0.00036027,60]
[398201304,1765437039667,-150.0,0.00036029,7]
[398201305,1765437039676,-290.0,0.0003604,30]
[398201306,1765437039686,-200.0,0.00036164,60]
[398201307,1765437039695,-278.13950023,0.00036164,60]
[398201308,1765437039704,-150.0,0.00036164,60]
[398201309,1765437039713,-200.0,0.00036164,60]
[398201310,1765437039722,-881.2,0.00036235,5]
[398201311,1765437039731,-1067.54,0.000363,30]
[398201312,1765437039740,-1000.0,0.000363,7]
[398201313,1765437039749,-150.0,0.00036412,7]
[398201314,1765437039758,-150.0,0.00036412,7]
[398201315,1765437039767,-8221.83549246,0.0003669,3]
[398201316,1765437039776,-151.0,0.00036697,14]
[398201317,1765437039785,-500.0,0.000367,30]
[398201318,1765437039794,-500.0,0.000367,30]
[398201319,1765437039803,-572.49907613,0.000367,30]
[398201320,1765437039812,-501.76348649,0.000367,30]
[398201321,1765437039821,-510.79850095,0.000367,30]
[398201322,1765437039831,-1400.0,0.000367,30]
[398201323,1765437039845,-1400.0,0.000367,30]
[398201324,1765437039854,-1400.0,0.000367,30]
[398201325,1765437039864,-1400.0,0.000367,30]
[398201326,1765437039873,-170.65032945,0.000367,30]
[398201327,1765437039882,-1400.0,0.000367,30]
[398201328,1765437039892,-1400.0,0.000367,30]
[398201329,1765437039901,-1400.0,0.000367,30]
[398201330,1765437039911,-1400.0,0.000367,30]
[398201331,1765437039920,-1400.0,0.000367,30]
[398201332,1765437039929,-1400.0,0.000367,30]
[398201333,1765437039938,-1400.0,0.000367,30]
[398201334,1765437039947,-1400.0,0.000367,30]
[398201335,1765437039957,-1400.0,0.000367,30]
[398201336,1765437039966,-1400.0,0.000367,30]
[398201337,1765437039976,-1400.0,0.000367,30]
[398201338,1765437039986,-1400.0,0.000367,30]
[398201339,1765437039996,-1400.0,0.000367,30]
[398201340,1765437040005,-1400.0,0.000367,30]
[398201341,1765437040015,-1400.0,0.000367,30]
[398201342,1765437040024,-1400.0,0.000367,30]
[398201343,1765437040034,-1400.0,0.000367,30]
[398201344,1765437040043,-1400.0,0.000367,30]
[398201345,1765437040053,-1400.0,0.000367,30]
[398201346,1765437040062,-1400.0,0.000367,30]
[398201347,1765437040072,-1400.0,0.000367,30]
[398201348,1765437040081,-1400.0,0.000367,30]
[398201349,1765437040091,-1400.0,0.000367,30]
[398201350,1765437040101,-2177.21694583,0.000367,30]
[398201351,1765437040110,-150.0,0.00036796,7]
[398201352,1765437040120,-7767.55,0.00036986,30]
[398201353,1765437040130,-150.0,0.00037051,7]
[398201354,1765437040140,-889.95,0.000373,30]
[398201355,1765437040149,-150.0,0.00037371,7]
[398201356,1765437040159,-150.0,0.00037371,7]
[398201357,1765437040170,-433.0,0.000375,120]
[398201358,1765437040180,-150.0,0.00037562,7]
[398201359,1765437040189,-1298.34367318,0.00037707,2]
[398201360,1765437040198,-2740.61183082,0.00037825,3]
[398201361,1765437040208,-2576.88,0.00037834,2]
[398201362,1765437040218,-1298.34367318,0.00037942,2]
[398201363,1765437040228,-230.51661187,0.00038,60]
[398201364,1765437040237,-150.36185267,0.00038212,7]
[398201365,1765437040246,-480.31,0.00038219,2]
[398201366,1765437040259,-219.76448304,0.00038225,2]
[398201367,1765437040268,-548.45159374,0.00038245,2]
[398201368,1765437040277,-2740.61183082,0.00038246,3]
[398201369,1765437040287,-11739.27277376,0.00038256,2]
[398201370,1765437040296,-519.56625397,0.00038256,2]
[398201371,1765437040305,-893.51255175,0.00038256,2]
[398201372,1765437040314,-21190.53116316,0.00038256,2]
[398201373,1765437040323,-253.0,0.00038285,2]
[398201374,1765437040332,-1298.34367319,0.00038326,2]
[398201375,1765437040341,-154.82397653,0.00038329,7]
[398201376,1765437040349,-267.25840344,0.00038329,7]
[398201377,1765437040359,-150.0,0.00038329,7]
[398201378,1765437040369,-150.0,0.00038329,7]
[398201379,1765437040378,-150.0,0.00038329,7]
[398201380,1765437040387,-5481.22366164,0.00038345,3]
[398201381,1765437040396,-610.65452117,0.00038346,2]
[398201382,1765437040405,-500.0,0.00038355,14]
[398201383,1765437040414,-502.23197211,0.00038355,14]
[398201384,1765437040423,-3970.72,0.00038355,60]
[398201385,1765437040432,-3970.72,0.00038355,60]
[398201386,1765437040441,-3970.72,0.00038355,60]
[398201387,1765437040450,-3970.72,0.00038355,60]
[398201388,1765437040459,-3970.72,0.00038355,60]
[398201389,1765437040468,-3970.72,0.00038355,60]
[398201390,1765437040478,-3970.72,0.00038355,60]
[398201391,1765437040487,-3970.72,0.00038355,60]
[398201392,1765437040497,-3970.72,0.00038355,60]
[398201393,1765437040507,-3970.72,0.00038355,60]
[398201394,1765437040515,-3970.72,0.00038355,60]
[398201395,1765437040525,-3970.72,0.00038355,60]
[398201396,1765437040534,-3970.72,0.00038355,60]
[398201397,1765437040543,-3970.72,0.00038355,60]
[398201398,1765437040552,-3970.72,0.00038355,60]
[398201399,1765437040561,-3970.72,0.00038355,60]
[398201400,1765437040571,-3970.72,0.00038355,60]
[398201401,1765437040580,-3970.72,0.00038355,60]
[398201402,1765437040590,-3970.72,0.00038355,60]
[398201403,1765437040599,-3970.86528244,0.00038355,60]
[398201404,1765437040610,-7720.54113715,0.00038356,2]
[398201405,1765437040620,-7720.54113715,0.00038356,4]
[398201406,1765437040629,-500.0,0.00038356,120]
[398201407,1765437040638,-160162.135526,0.00038356,2]
[398201408,1765437040648,-500.0,0.00038356,60]
[398201409,1765437040657,-501.67973271,0.00038356,60]
[398201410,1765437040667,-502.97572106,0.00038356,60]
[398201411,1765437040676,-503.64675575,0.00038356,60]
[398201412,1765437040685,-500.0,0.00038356,60]
[398201413,1765437040694,-503.44488944,0.00038356,60]
[398201414,1765437040703,-500.0,0.00038356,60]
[398201415,1765437040713,-505.06718805,0.00038356,60]
[398201416,1765437040722,-501.74217647,0.00038356,60]
[398201417,1765437040731,-504.02346718,0.00038356,60]
[398201418,1765437040741,-500.0,0.00038356,60]
[398201419,1765437040750,-500.0,0.00038356,60]
[398201420,1765437040759,-500.0,0.00038356,60]
[398201421,1765437040769,-500.0,0.00038356,60]
[398201422,1765437040779,-500.0,0.00038356,60]
[398201423,1765437040788,-500.0,0.00038356,60]
[398201424,1765437040797,-504.32529596,0.00038356,60]
[398201425,1765437040807,-500.0,0.00038356,60]
[398201426,1765437040816,-502.48187463,0.00038356,60]
[398201427,1765437040825,-503.90546548,0.00038356,60]
[398201429,1765437040835,-502.45472238,0.00038356,60]
[398201430,1765437040844,-504.00483203,0.00038356,60]
[398201431,1765437040855,-500.0,0.00038356,60]
[398201432,1765437040864,-500.0,0.00038356,60]
[398201434,1765437040873,-269.66887225,0.00038356,60]
[398201435,1765437040882,-158.91674368,0.00038356,60]
[398201436,1765437040891,-500.0,0.00038356,60]
[398201437,1765437040901,-500.0,0.00038356,60]
[398201438,1765437040911,-500.0,0.00038356,60]
[398201439,1765437040921,-501.7062107,0.00038356,60]
[398201440,1765437040930,-500.0,0.00038356,60]
[398201441,1765437040939,-500.0,0.00038356,60]
[398201442,1765437040949,-502.82019542,0.00038356,60]
[398201443,1765437040958,-500.0,0.00038356,60]
[398201444,1765437040968,-500.0,0.00038356,60]
[398201445,1765437040978,-500.0,0.00038356,60]
[398201446,1765437040988,-421.21008779,0.00038356,60]
[398201447,1765437040997,-500.0,0.00038356,60]
[398201448,1765437041007,-500.0,0.00038356,60]
[398201449,1765437041016,-500.0,0.00038356,60]
[398201450,1765437041026,-463.36571714,0.00038356,60]
[398201451,1765437041036,-500.0,0.00038356,60]
[398201452,1765437041046,-500.0,0.00038356,60]
[398201453,1765437041055,-503.39435486,0.00038356,60]
[398201454,1765437041064,-482.47916882,0.00038356,60]
[398201455,1765437041074,-360.24982748,0.00038356,60]
[398201456,1765437041083,-500.0,0.00038356,60]
[398201457,1765437041092,-500.0,0.00038356,60]
[398201458,1765437041102,-500.0,0.00038356,60]
[398201459,1765437041113,-500.0,0.00038356,60]
[398201460,1765437041121,-500.0,0.00038356,60]
[398201461,1765437041131,-500.0,0.00038356,60]
[398201462,1765437041141,-500.0,0.00038356,60]
[398201463,1765437041151,-500.0,0.00038356,60]
[398201464,1765437041160,-500.0,0.00038356,60]
[398201465,1765437041171,-500.0,0.00038356,60]
[398201466,1765437041182,-500.0,0.00038356,60]
[398201467,1765437041191,-503.85485729,0.00038356,60]
[398201468,1765437041200,-500.0,0.00038356,60]
[398201469,1765437041209,-500.0,0.00038356,60]
[398201470,1765437041222,-500.0,0.00038356,60]
[398201471,1765437041232,-500.0,0.00038356,60]
[398201472,1765437041241,-500.0,0.00038356,60]
[398201473,1765437041251,-500.0,0.00038356,60]
[398201474,1765437041260,-507.16644502,0.00038356,60]
[398201475,1765437041269,-503.00893761,0.00038356,60]
[398201476,1765437041279,-500.0,0.00038356,60]
[398201477,1765437041288,-500.0,0.00038356,60]
[398201478,1765437041297,-500.0,0.00038356,60]
[398201479,1765437041307,-500.0,0.00038356,60]
[398201480,1765437041316,-500.0,0.00038356,60]
[398201481,1765437041326,-500.0,0.00038356,60]
[398201482,1765437041335,-500.0,0.00038356,60]
[398201483,1765437041344,-500.0,0.00038356,60]
[398201484,1765437041353,-500.0,0.00038356,60]
[398201485,1765437041364,-500.0,0.00038356,60]
[398201486,1765437041373,-508.45624904,0.00038356,60]
[398201487,1765437041382,-500.0,0.00038356,60]
[398201488,1765437041392,-500.0,0.00038356,60]
[398201489,1765437041401,-500.0,0.00038356,60]
[398201490,1765437041410,-500.0,0.00038356,60]
[398201491,1765437041419,-500.0,0.00038356,60]
[398201492,1765437041428,-500.0,0.00038356,60]
[398201493,1765437041437,-468.82997477,0.00038356,60]
[398201494,1765437041446,-530.84091822,0.00038356,60]
[398201495,1765437041456,-422.28310709,0.00038356,60]
[398201496,1765437041465,-500.0,0.00038356,60]
[398201497,1765437041475,-500.0,0.00038356,60]
[398201498,1765437041485,-500.0,0.00038356,60]
[398201499,1765437041494,-509.93649274,0.00038356,60]
[398201500,1765437041503,-500.0,0.00038356,60]
[398201501,1765437041512,-500.0,0.00038356,60]
[398201502,1765437041521,-505.70533133,0.00038356,60]
[398201503,1765437041530,-500.0,0.00038356,60]
[398201504,1765437041539,-501.44991976,0.00038356,60]
[398201505,1765437041548,-500.0,0.00038356,60]
[398201506,1765437041557,-500.0,0.00038356,60]
[398201507,1765437041566,-500.0,0.00038356,60]
[398201508,1765437041575,-500.0,0.00038356,60]
[398201509,1765437041585,-507.04300641,0.00038356,60]
[398201510,1765437041594,-500.0,0.00038356,60]
[398201511,1765437041602,-500.0,0.00038356,60]
[398201512,1765437041612,-500.0,0.00038356,60]
[398201513,1765437041621,-505.75382487,0.00038356,60]
[398201514,1765437041630,-503.96412623,0.00038356,60]
[398201515,1765437041639,-500.0,0.00038356,60]
[398201516,1765437041648,-500.0,0.00038356,60]
[398201517,1765437041657,-500.0,0.00038356,60]
[398201518,1765437041666,-509.70340159,0.00038356,60]
[398201519,1765437041675,-500.0,0.00038356,60]
[398201520,1765437041685,-503.76745394,0.00038356,60]
[398201521,1765437041694,-500.0,0.00038356,60]
[398201522,1765437041703,-505.86092124,0.00038356,60]
[398201523,1765437041712,-500.0,0.00038356,60]
[398201524,1765437041721,-500.0,0.00038356,60]
[398201525,1765437041731,-500.0,0.00038356,60]
[398201526,1765437041740,-500.0,0.00038356,60]
[398201527,1765437041749,-500.0,0.00038356,60]
[398201528,1765437041758,-500.0,0.00038356,60]
[398201529,1765437041767,-500.0,0.00038356,60]
[398201530,1765437041776,-500.0,0.00038356,60]
[398201531,1765437041786,-500.0,0.00038356,60]
[398201532,1765437041795,-500.0,0.00038356,60]
[398201533,1765437041804,-500.0,0.00038356,60]
[398201534,1765437041813,-500.0,0.00038356,60]
[398201535,1765437041822,-500.0,0.00038356,60]
[398201536,1765437041831,-500.0,0.00038356,60]
[398201537,1765437041840,-283.50381722,0.00038356,60]
[398201538,1765437041849,-500.0,0.00038356,60]
[398201539,1765437041859,-500.0,0.00038356,60]
[398201540,1765437041868,-500.0,0.00038356,60]
[398201541,1765437041878,-500.0,0.00038356,60]
[398201542,1765437041887,-500.0,0.00038356,60]
[398201543,1765437041896,-507.40354266,0.00038356,60]
[398201544,1765437041906,-500.0,0.00038356,60]
[398201545,1765437041915,-540.38018426,0.00038356,60]
[398201546,1765437041924,-500.0,0.00038356,60]
[398201547,1765437041933,-500.0,0.00038356,60]
[398201548,1765437041942,-500.0,0.00038356,60]
[398201549,1765437041951,-500.0,0.00038356,60]
[398201550,1765437042116,-500.0,0.00038356,60]
[398201551,1765437042128,-500.0,0.00038356,60]
[398201552,1765437042138,-500.0,0.00038356,60]
[398201553,1765437042148,-500.0,0.00038356,60]
[398201554,1765437042158,-500.0,0.00038356,60]
[398201555,1765437042168,-500.0,0.00038356,60]
[398201556,1765437042181,-500.0,0.00038356,60]
[398201557,1765437042190,-500.0,0.00038356,60]
[398201558,1765437042201,-500.0,0.00038356,60]
[398201559,1765437042211,-500.0,0.00038356,60]
[398201560,1765437042220,-500.0,0.00038356,60]
[398201561,1765437042229,-500.0,0.00038356,60]
[398201562,1765437042239,-500.0,0.00038356,60]
[398201563,1765437042248,-500.0,0.00038356,60]
[398201564,1765437042258,-500.0,0.00038356,60]
[398201565,1765437042267,-500.0,0.00038356,60]
[398201566,1765437042276,-500.0,0.00038356,60]
[398201567,1765437042285,-500.0,0.00038356,60]
[398201568,1765437042295,-500.0,0.00038356,60]
[398201569,1765437042303,-500.0,0.00038356,60]
[398201570,1765437042313,-500.0,0.00038356,60]
[398201571,1765437042322,-500.0,0.00038356,60]
[398201572,1765437042331,-500.0,0.00038356,60]
[398201573,1765437042341,-500.0,0.00038356,60]
[398201574,1765437042351,-500.0,0.00038356,60]
[398201575,1765437042360,-500.0,0.00038356,60]
[398201576,1765437042369,-612.99027156,0.00038356,60]
[398201577,1765437042378,-500.0,0.00038356,60]
[398201578,1765437042388,-500.0,0.00038356,60]
[398201579,1765437042399,-500.0,0.00038356,60]
[398201580,1765437042408,-500.0,0.00038356,60]
[398201581,1765437042417,-500.0,0.00038356,60]
[398201582,1765437042427,-500.0,0.00038356,60]
[398201583,1765437042436,-502.09500122,0.00038356,60]
[398201584,1765437042444,-500.0,0.00038356,60]
[398201585,1765437042454,-508.27831395,0.00038356,60]
[398201586,1765437042463,-500.0,0.00038356,60]
[398201587,1765437042472,-500.0,0.00038356,60]
[398201588,1765437042481,-509.6537985,0.00038356,60]
[398201589,1765437042490,-500.0,0.00038356,60]
[398201590,1765437042499,-506.86821063,0.00038356,60]
[398201591,1765437042508,-500.0,0.00038356,60]
[398201592,1765437042517,-500.0,0.00038356,60]
[398201593,1765437042526,-500.0,0.00038356,60]
[398201594,1765437042534,-500.0,0.00038356,60]
[398201595,1765437042543,-500.0,0.00038356,60]
[398201596,1765437042552,-500.0,0.00038356,60]
[398201597,1765437042560,-500.0,0.00038356,60]
[398201598,1765437042569,-500.0,0.00038356,60]
[398201599,1765437042578,-500.0,0.00038356,60]
[398201600,1765437042587,-500.0,0.00038356,60]
[398201601,1765437042595,-510.18757052,0.00038356,60]
[398201602,1765437042604,-500.0,0.00038356,60]
[398201603,1765437042613,-500.0,0.00038356,60]
[398201604,1765437042622,-500.0,0.00038356,60]
[398201605,1765437042639,-500.0,0.00038356,60]
[398201606,1765437042648,-500.0,0.00038356,60]
[398201607,1765437042657,-512.19100272,0.00038356,60]
[398201608,1765437042668,-500.0,0.00038356,60]
[398201609,1765437042677,-500.0,0.00038356,60]
[398201610,1765437042686,-500.0,0.00038356,60]
[398201611,1765437042695,-500.0,0.00038356,60]
[398201612,1765437042704,-500.0,0.00038356,60]
[398201613,1765437042712,-500.0,0.00038356,60]
[398201614,1765437042721,-500.0,0.00038356,60]
[398201615,1765437042730,-500.0,0.00038356,60]
[398201616,1765437042739,-500.0,0.00038356,60]
[398201617,1765437042748,-512.47138023,0.00038356,60]
[398201618,1765437042757,-500.0,0.00038356,60]
[398201619,1765437042766,-500.0,0.00038356,60]
[398201620,1765437042775,-500.0,0.00038356,60]
[398201621,1765437042783,-500.0,0.00038356,60]
[398201622,1765437042793,-500.0,0.00038356,60]
[398201623,1765437042802,-500.0,0.00038356,60]
[398201624,1765437042811,-500.0,0.00038356,60]
[398201625,1765437042821,-506.04721121,0.00038356,60]